[Event "AI Cup Div-2 2023"]
[Site "Online"]
[Date "2023.09.28"]
[Round "56.2"]
[White "Kuzubov, Yuriy"]
[Black "Artemiev, Vladislav"]
[Result "1/2-1/2"]
[ECO "E36"]
[WhiteElo "2625"]
[BlackElo "2697"]
[Annotator "TA"]
[PlyCount "133"]
[EventDate "2023.09.18"]
[EventType "k.o."]
[EventCountry "NET"]
[SourceTitle "playchess.com"]
[Source "ChessBase"]
[SourceQuality "1"]
[TimeControl "900+3"]

{[%evp 11,132,0,22,35,41,30,33,39,38,38,50,44,86,58,50,51,57,54,62,65,66,61,49,51,47,0,46,0,68,74,82,89,81,45,86,72,71,68,61,50,106,96,88,105,108,94,117,107,117,107,115,115,138,127,125,125,116,57,76,48,60,44,74,59,82,49,209,209,187,6,6,6,5,6,6,6,6,0,0,0,0,-8,-8,-8,-8,-8,-8,-8,-8,-8,-8,-10,-10,-10,0,0,0,0,0,0,0,0,0,0,0,0,0,0,0,0,0,0,0,0,0,0,0,0,0,0,0,0,0]} 1. d4 {[%emt 0:00:04]} Nf6 {[%emt 0:00:40]} 2. c4 {[%emt 0:00:06]} e6 {[%emt 0:00:02]} 3. Nc3 {[%emt 0:00:02]} Bb4 {[%emt 0:00:02]} 4. Qc2 {[%emt 0:00:01]} d5 {[%emt 0:00:40]} 5. a3 {[%emt 0:00:03]} Bxc3+ {[%emt 0:00:04]} 6. Qxc3 {[%emt 0:00:00]} b6 {[%emt 0:00:16]} 7. cxd5 {[%emt 0:00:17] E36: Nimzo-Indian: Classical: 4...d5 5 a3.} Ne4 {[%emt 0:02:03]} 8. Qc2 {[%emt 0:03:04]} exd5 {[%emt 0:00:03]} 9. Bf4 {[%emt 0:00:16] White is slightly better.} c5 {[%emt 0:00:06]} ({Resist} 9... Qh4 10. e3 $16 (10. Bxc7 $2 {is a self mate.} Qxf2+ 11. Kd1 Qxf1#)) 10. f3 {[%emt 0:00:25]} Ng5 {[%emt 0:01:12]} 11. dxc5 {[%emt 0:00:22] [#] And now c6 would win.} bxc5 $146 {[%emt 0:01:22]} ({Predecessor:} 11... Ne6 12. Bxb8 Rxb8 13. Qa4+ Qd7 14. c6 Qc7 15. e3 O-O 16. Ne2 Nc5 17. Qc2 Qxc6 18. Nd4 Qh6 19. Kf2 Re8 {½-½ L'Ami,E (2610)-Timman,J (2562) Staunton Memorial 6th 2008 (10)}) 12. Bxg5 {[%emt 0:01:25]} (12. Qxc5 {with more complications.} Ne6 13. Qb5+ Bd7 14. Qxd5 Nc6 15. Nh3) 12... Qxg5 {[%emt 0:00:02]} 13. Qxc5 {[%emt 0:00:01]} Nd7 {[%emt 0:00:12]} 14. Qd4 {[%emt 0:00:08]} O-O $1 {[%emt 0:01:16]} 15. e3 {[%emt 0:00:52]} Re8 {[%emt 0:02:04]} 16. Kf2 {[%emt 0:00:03]} Ne5 {[%emt 0:02:04]} 17. Ne2 {[%emt 0:02:35]} Rb8 {[%emt 0:01:40][%cal Ob8b2]} 18. Nf4 {[%emt 0:00:39]} (18. b4 $14) 18... Nc6 {[%emt 0:01:16]} (18... Qh4+ $1 $11 19. Kg1 Qg5) 19. Qd2 {[%emt 0:00:04]} (19. Qc3 $14 {might be stronger.} Bb7 20. h4) 19... Qf6 {[%emt 0:00:23]} (19... d4 $11 20. exd4 Qf6) 20. Nxd5 $14 {[%emt 0:01:17]} Qxb2 {[%emt 0:00:02]} 21. Qxb2 {[%emt 0:00:03]} (21. Ra2 {feels hotter.} Qe5 22. Rc2 h6 23. Be2) 21... Rxb2+ {[%emt 0:00:01]} 22. Kg3 {[%emt 0:00:02]} Ne7 {[%emt 0:00:33]} 23. Nxe7+ {[%emt 0:00:43]} Rxe7 {[%emt 0:00:00]} 24. Rc1 {[%emt 0:00:22]} Be6 {[%emt 0:00:04]} 25. e4 {[%emt 0:00:54]} Rb3 {[%emt 0:00:04]} (25... h5 $14) 26. a4 $16 {[%emt 0:00:49]} Ra3 {[%emt 0:00:01]} 27. Bb5 {[%emt 0:00:07]} g6 {[%emt 0:00:01]} 28. Rc6 {[%emt 0:00:50]} Ra2 {[%emt 0:00:09]} 29. Rd1 {[%emt 0:00:07]} Bb3 {[%emt 0:00:02]} 30. Rd4 {[%emt 0:00:19]} Kg7 {[%emt 0:00:01]} 31. h4 {[%emt 0:00:05]} h5 {[%emt 0:00:02]} 32. Rc3 {[%emt 0:00:07]} Be6 {[%emt 0:00:01]} 33. Rd6 {[%emt 0:00:01]} Rb7 {[%emt 0:00:04]} 34. f4 {[%emt 0:00:08]} (34. Rcd3 $16) 34... Re7 {[%emt 0:00:03]} 35. Rd4 {[%emt 0:00:09]} Bg4 {[%emt 0:00:03]} 36. Bd3 {[%emt 0:00:03]} Rd2 {[%emt 0:00:02]} 37. Rd5 {[%emt 0:00:05]} Be6 {[%emt 0:00:02]} 38. Rd6 {[%emt 0:00:01]} Ra2 $2 {[%emt 0:00:09]} (38... a5 $14) 39. f5 $18 {[%emt 0:00:06]} Rd7 {[%emt 0:00:05]} 40. Rdc6 {[%emt 0:00:11]} (40. fxe6 $18 Rxd6 41. e7) 40... gxf5 $11 {[%emt 0:00:02] The position is equal.} 41. exf5 {[%emt 0:00:02]} Rxg2+ $1 {[%emt 0:00:04][%mdl 64] [#] Decoy} 42. Kxg2 {[%emt 0:00:04]} Bd5+ {[%emt 0:00:00]} 43. Kf2 {[%emt 0:00:01] Intending f6+ and mate.} Bxc6 {[%emt 0:00:01][%mdl 4096] Endgame KRB-KRB} 44. f6+ {[%emt 0:00:01]} Kh6 {[%emt 0:00:02]} 45. Ke3 {[%emt 0:00:02]} Rd6 {[%emt 0:00:05]} (45... Bxa4 $2 46. Rc8 Rxd3+ 47. Kxd3 $16) 46. Rc1 {[%emt 0:00:04]} Bxa4 {[%emt 0:00:03]} 47. Ra1 {[%emt 0:00:07]} Bb3 {[%emt 0:00:05]} 48. Ra3 {[%emt 0:00:03]} Bd5 {[%emt 0:00:03]} 49. Ra5 {[%emt 0:00:02]} Bc6 {[%emt 0:00:03]} 50. Bc4 {[%emt 0:00:04]} Rxf6 {[%emt 0:00:01]} 51. Rxa7 {[%emt 0:00:01]} Kg7 {[%emt 0:00:02]} 52. Rc7 {[%emt 0:00:03]} Bf3 {[%emt 0:00:06]} 53. Bxf7 {[%emt 0:00:04]} Rxf7 {[%emt 0:00:00]} 54. Rxf7+ {[%emt 0:00:00][%mdl 64] [#] Remove Defender} Kxf7 {[%emt 0:00:01]} 55. Kxf3 {[%emt 0:00:00] KP-KP} Ke6 {[%emt 0:00:01]} 56. Ke4 {[%emt 0:00:01]} Kf6 {[%emt 0:00:02]} 57. Kf4 {[%emt 0:00:00]} Kg6 {[%emt 0:00:00]} 58. Ke5 $1 {[%emt 0:00:00]} Kg7 {[%emt 0:00:00]} 59. Kf5 {[%emt 0:00:01]} Kg8 {[%emt 0:00:00]} 60. Kg6 {[%emt 0:00:01]} Kh8 {[%emt 0:00:01]} 61. Kxh5 {[%emt 0:00:00] KP-K} Kg7 {[%emt 0:00:00]} 62. Kg5 {[%emt 0:00:00]} Kh8 {[%emt 0:00:01]} 63. h5 $1 {[%emt 0:00:00][%cal Bh4h5,Bh5h6,Bh6h7][%mdl 32]} Kg8 {[%emt 0:00:00]} 64. h6 {[%emt 0:00:00]} Kh8 {[%emt 0:00:01]} 65. Kg6 {[%emt 0:00:01]} Kg8 {[%emt 0:00:00]} 66. h7+ {[%emt 0:00:00]} Kh8 {[%emt 0:00:00]} 67. Kh6 {[%emt 0:00:00] Weighted Error Value: White=0.14 (very precise) /Black=0.15 (very precise)} 1/2-1/2